bitfinex/quotes_SOLUSD_20250416
["timestamp","ask_amount","ask_price","bid_price","bid_amount"]
[1744772221440,9.03157963,126.77,126.72,9.03157963]
[1744772221742,9.03157963,126.77,126.73,7.89079144]
[1744772222322,9.03157963,126.76,126.73,7.89079144]
[1744772222721,9.03157963,126.76,126.72,7.89116554]
[1744772222923,9.03157963,126.75,126.72,7.89116554]
[1744772223523,9.03157963,126.75,126.71,7.95484777]
[1744772223729,9.03157963,126.74,126.71,0.063]
[1744772223934,9.03157963,126.76,126.71,9.09457963]
[1744772224133,9.03157963,126.76,126.72,9.03157963]
[1744772224448,9.03157963,126.77,126.72,9.03157963]
[1744772225249,9.03157963,126.77,126.73,7.89079144]
[1744772228745,9.03157963,126.76,126.73,7.89079144]
[1744772228937,9.03157963,126.74,126.71,0.063]
[1744772229139,9.03157963,126.72,126.71,0.063]
[1744772230550,16.92299377,126.72,126.71,0.063]
[1744772232652,9.03157963,126.72,126.71,0.063]
[1744772234152,16.92299377,126.72,126.71,0.063]
[1744772237255,7.89079144,126.73,126.71,0.063]
[1744772237466,9.03157963,126.72,126.71,0.063]
[1744772238650,27.68122849,126.72,126.71,0.063]
[1744772239238,35.57264263,126.72,126.71,0.063]
[1744772240373,16.92299377,126.72,126.71,0.063]
[1744772241556,32.5075,126.76,126.71,0.063]
[1744772241858,9.03157963,126.74,126.71,0.063]
[1744772242062,18.74922644,126.76,126.71,0.063]
[1744772242254,19.89157963,126.76,126.71,9.09457963]
[1744772242456,9.03157963,126.78,126.73,9.03157963]
[1744772243647,9.03157963,126.77,126.74,7.89016884]
[1744772244146,9.03157963,126.78,126.74,7.89016884]
[1744772244759,9.03157963,126.77,126.74,7.89016884]
[1744772245555,45.89157963,126.79,126.74,16.92174847]
[1744772245868,45.89157963,126.79,126.75,9.03157963]
[1744772246365,45.89157963,126.79,126.75,1.5987]
[1744772249269,45.89157963,126.79,126.76,7.88892395]
[1744772249979,19.89157963,126.79,126.76,7.88892395]
[1744772252068,9.03157963,126.78,126.76,7.88892395]
[1744772252464,9.03157963,126.77,126.72,30.58801037]
[1744772252677,9.03157963,126.76,126.72,39.61959]
[1744772252971,9.03157963,126.77,126.72,39.61959]
[1744772253365,9.03157963,126.77,126.73,7.89079144]
[1744772253664,9.03157963,126.77,126.73,16.92237107]
[1744772263894,9.03157963,126.78,126.73,16.92237107]
[1744772265200,10.86,126.79,126.74,9.03157963]
[1744772265391,0.03,126.81,126.77,9.03157963]
[1744772265879,9.06157963,126.81,126.77,9.03157963]
[1744772266191,9.03157963,126.8,126.76,1.645]
[1744772266568,9.03157963,126.8,126.77,7.88830164]
[1744772268998,9.03157963,126.8,126.76,9.53360034]
[1744772269896,16.91805027,126.8,126.76,9.53360034]
[1744772270097,16.91805027,126.8,126.74,19.72440329]
[1744772270098,9.03157963,126.78,126.74,7.89016884]
[1744772270481,9.03157963,126.77,126.73,9.54952736]
[1744772271399,9.03157963,126.77,126.73,18.58110699]
[1744772271596,7.88793608,126.78,126.74,9.03157963]
[1744772271597,9.03157963,126.78,126.74,9.03157963]
[1744772271876,9.03157963,126.79,126.74,9.03157963]
[1744772272070,26.56572789,126.81,126.75,9.03157963]
[1744772272271,0.03,126.81,126.76,9.03157963]
[1744772272713,9.06157963,126.81,126.76,15.63027963]
[1744772273035,9.06157963,126.81,126.77,7.88830164]
[1744772274935,9.03157963,126.8,126.77,7.88830164]
[1744772278036,9.06157963,126.81,126.77,7.88830164]
[1744772278936,0.03,126.81,126.8,9.03157963]
[1744772279144,0.03,126.84,126.83,26.0]
[1744772279437,0.03,126.84,126.83,43.05831109]
[1744772280343,0.03,126.85,126.84,0.14216157]
[1744772280517,0.03,126.85,126.84,9.1737412]
[1744772281845,0.03,126.85,126.84,17.05768948]
[1744772282232,0.03,126.85,126.84,16.91552791]
[1744772284137,1e-08,126.85,126.84,17.05768948]
[1744772286949,1e-08,126.87,126.85,52.81851043]
[1744772287147,1e-08,126.87,126.86,9.1737412]
[1744772288944,1e-08,126.87,126.86,17.05644654]
[1744772289145,1e-08,126.88,126.87,0.14216157]
[1744772289357,1e-08,126.89,126.87,27.82339006]
[1744772289538,1e-08,126.89,126.88,9.1737412]
[1744772290431,9.03157963,126.94,126.88,9.1737412]
[1744772290432,12.29334843,127.09,126.96,23.69]
[1744772290728,9.03157963,127.08,127.02,9.03157963]
[1744772290925,9.03157963,127.07,127.02,19.87157963]
[1744772291142,21.32492806,127.09,127.04,9.03157963]
[1744772291337,12.29334843,127.09,127.05,9.03157963]
[1744772292151,12.29334843,127.09,127.03,27.55254663]
[1744772292152,12.29334843,127.09,127.06,9.03157963]
[1744772292351,9.03157963,127.11,127.06,9.03157963]
[1744772292838,34.1312,127.13,127.06,9.03157963]
[1744772293034,9.03157963,127.1,127.05,9.03157963]
[1744772293350,14.0458857,127.1,127.05,14.0458857]
[1744772294342,14.0458857,127.11,127.06,14.0458857]
[1744772295154,14.0458857,127.12,127.07,14.0458857]
[1744772295333,14.0458857,127.11,127.06,14.0458857]
[1744772295530,14.0458857,127.1,127.05,14.0458857]
[1744772296555,14.0458857,127.1,127.05,21.91669892]
[1744772297155,14.0458857,127.1,127.06,14.0458857]
[1744772298362,14.0458857,127.1,127.05,14.0458857]
[1744772298661,14.0458857,127.08,127.03,21.91804188]
[1744772299452,14.0458857,127.07,127.02,32.7384287]
[1744772301360,14.0458857,127.06,127.01,14.0458857]
[1744772301566,14.0458857,127.03,127.0,10.82]
[1744772302565,14.0458857,127.03,126.98,267.82099216]
[1744772303151,14.0458857,127.03,126.98,259.9458857]
[1744772303458,14.0458857,127.02,126.98,259.9458857]
[1744772303659,14.0458857,127.02,126.97,14.0458857]
[1744772304247,14.0458857,127.02,126.97,21.92161497]
[1744772304767,14.0458857,127.01,126.97,14.0458857]
[1744772305359,14.0458857,127.01,126.96,17.0017]
[1744772305559,14.0458857,126.99,126.96,10.82]
[1744772305752,14.0458857,126.99,126.94,24.8658857]
[1744772306280,14.0458857,126.97,126.94,10.82]
[1744772306967,14.0458857,126.97,126.93,14.0458857]
[1744772307575,14.0458857,126.97,126.93,21.92421765]
[1744772307755,14.0458857,126.97,126.93,14.0458857]
[1744772308862,14.0458857,126.94,126.88,7.88146279]
[1744772309063,14.0458857,126.93,126.88,21.92734849]
[1744772310969,21.92437999,126.93,126.88,21.92734849]
[1744772311363,21.92437999,126.93,126.88,14.0458857]
[1744772311867,7.87711697,126.95,126.92,14.0458857]
[1744772312065,10.84,127.0,126.94,14.0458857]
[1744772312260,14.0458857,126.99,126.95,14.0458857]
[1744772312461,14.0458857,126.99,126.94,14.0458857]
[1744772313270,14.0458857,126.98,126.94,14.0458857]
[1744772314872,21.92158629,126.98,126.94,14.0458857]
[1744772315051,21.92158629,126.98,126.93,21.92409167]
[1744772317275,14.0458857,126.98,126.93,21.92409167]
[1744772317564,21.92117643,126.98,126.93,21.92409167]
[1744772319469,21.92127521,126.98,126.93,21.92409167]
[1744772324780,6.2724,127.01,126.96,14.0458857]
[1744772324955,14.0458857,127.01,126.96,14.0458857]
[1744772325160,40.0458857,127.01,126.96,14.0458857]
[1744772325670,14.0458857,127.0,126.95,14.0458857]
[1744772325875,14.0458857,126.99,126.95,14.0458857]
[1744772326579,14.0458857,126.99,126.95,21.92251129]
[1744772326880,14.0458857,127.0,126.95,21.92251129]
[1744772328584,14.0458857,126.99,126.95,21.92251129]
[1744772329083,14.0458857,126.99,126.95,7.87662559]
[1744772330666,14.0458857,126.98,126.93,7.87835815]
[1744772330866,14.0458857,126.99,126.94,14.0458857]
[1744772331482,7.87417081,127.0,126.94,14.0458857]
[1744772331683,14.0458857,126.99,126.94,14.0458857]
[1744772332084,14.0458857,126.99,126.95,7.87711697]
[1744772332480,14.0458857,126.99,126.95,21.92300267]
[1744772333002,14.0458857,126.97,126.93,21.92395254]
[1744772333289,14.0458857,126.97,126.93,7.87806684]
[1744772334992,7.87543345,126.98,126.93,21.92395254]
[1744772335186,21.92131915,126.98,126.93,21.92395254]
[1744772335574,14.0458857,126.97,126.93,7.87806684]
[1744772337296,21.92131915,126.98,126.93,21.92395254]
[1744772338378,14.0458857,126.97,126.93,7.87806684]
[1744772338770,14.0458857,126.97,126.93,21.92395254]
[1744772339076,7.87543345,126.98,126.93,21.92395254]
[1744772339278,21.92131915,126.98,126.93,21.92395254]
[1744772341699,36.84,127.01,126.95,14.0458857]
[1744772341891,14.0458857,127.0,126.96,14.0458857]
[1744772342194,14.0458857,127.0,126.95,14.0458857]
[1744772342500,21.92022293,127.0,126.95,14.0458857]
[1744772343819,21.92022293,127.0,126.95,21.92240463]
[1744772344397,14.0458857,126.99,126.95,21.92240463]
[1744772345600,14.0458857,126.99,126.94,14.0458857]
[1744772346103,14.0458857,126.98,126.94,14.0458857]
[1744772346321,14.0458857,126.97,126.93,21.92424385]
[1744772346800,14.0458857,126.98,126.93,21.92424385]
[1744772347206,21.92119988,126.98,126.93,21.92424385]
[1744772347387,14.0458857,126.97,126.93,7.87835815]
[1744772347595,7.87531418,126.98,126.91,7.734]
[1744772347596,14.0458857,126.95,126.91,7.734]
[1744772347800,14.0458857,126.97,126.92,14.0458857]
[1744772348225,14.0458857,126.99,126.94,14.0458857]
[1744772348717,14.0458857,126.98,126.94,14.0458857]
[1744772348927,14.0458857,126.98,126.93,14.0458857]
[1744772349325,14.0458857,126.98,126.94,7.87773751]
[1744772350724,21.92114783,126.98,126.94,7.87773751]
[1744772351423,14.0458857,126.98,126.94,7.87773751]
[1744772351913,14.0458857,126.98,126.94,21.92362321]
[1744772353329,14.0458857,126.98,126.94,16.88279699]
[1744772353330,9.00505948,126.98,126.94,16.88279699]
[1744772354125,36.84,127.01,126.95,9.00505948]
[1744772354329,45.84505948,127.01,126.96,9.00505948]
[1744772354620,9.00505948,127.0,126.95,9.00505948]
[1744772355204,44.71354513,127.01,126.96,7.87649653]
[1744772355428,9.00505948,127.0,126.96,7.87649653]
[1744772356529,44.71354513,127.01,126.96,16.88155601]
[1744772356727,9.00505948,127.0,126.96,16.88155601]
[1744772357609,9.00505948,127.0,126.96,7.87649653]
[1744772358326,16.87910549,127.0,126.96,7.87649653]
[1744772359023,9.00505948,126.98,126.95,7.87679471]
[1744772359236,9.00505948,126.99,126.95,7.87679471]
[1744772360631,9.00505948,126.98,126.94,7.8774331]
[1744772361739,9.00505948,126.99,126.94,16.88249258]
[1744772361941,9.00505948,127.0,126.95,9.00505948]
[1744772362236,0.03,127.04,126.98,9.00505948]
[1744772362436,9.00505948,127.03,126.99,9.00505948]
[1744772362729,9.00505948,127.03,126.98,9.00505948]
[1744772363113,7.9016596,127.04,126.98,14.06136984]
[1744772363319,0.03,127.04,126.97,0.14216157]
[1744772363515,0.03,127.04,127.0,14.06136984]
[1744772363827,21.96292949,127.04,127.0,7.87401574]
[1744772364020,14.06136984,127.03,126.99,7.87463579]
[1744772364220,14.09136984,127.04,126.99,21.93600563]
[1744772365133,14.06136984,127.03,126.99,7.87463579]
[1744772368440,21.93366858,127.03,126.99,7.87463579]
[1744772369242,14.06136984,127.03,126.99,7.87463579]
[1744772369818,14.06136984,127.02,126.98,7.87507406]
[1744772371831,21.9341658,127.02,126.98,7.87507406]
[1744772374039,14.06136984,127.02,126.98,7.87507406]
[1744772375022,21.93419741,127.02,126.98,7.87507406]
[1744772376036,14.06136984,127.01,126.97,7.87558367]
[1744772378337,22.69,127.0,126.97,7.87558367]
[1744772379146,14.06136984,127.01,126.97,7.87558367]
[1744772379850,14.06136984,127.01,126.97,21.93695351]
[1744772380949,7.87282757,127.02,126.97,21.93695351]
[1744772381148,14.09136984,127.04,126.99,14.06136984]
[1744772381749,14.06136984,127.03,126.98,14.06136984]
[1744772382623,14.06136984,127.03,126.97,27.56527414]
[1744772382828,14.06136984,127.02,126.98,7.87511866]
[1744772383049,14.06136984,127.01,126.98,7.87511866]
[1744772383230,14.06136984,127.02,126.98,7.87511866]
[1744772384645,21.93427157,127.02,126.98,7.87511866]
[1744772385148,16.87339195,127.02,126.98,7.87511866]
[1744772392450,9.00049022,127.02,126.98,7.87511866]
[1744772393654,16.8733099,127.02,126.98,7.87511866]
[1744772394733,9.03049022,127.04,126.99,9.00049022]
[1744772394934,0.03,127.04,127.0,9.00049022]
[1744772395148,22.69,127.01,127.0,9.00049022]
[1744772395654,22.69,127.01,126.99,9.00049022]
[1744772395952,9.03049022,127.04,126.99,9.00049022]
[1744772396152,0.03,127.04,127.0,9.00049022]
[1744772396648,9.03049022,127.04,126.99,9.00049022]
[1744772396829,16.9021364,127.04,126.99,16.87451983]
[1744772397863,9.00049022,127.03,126.99,7.87402961]
[1744772398054,9.00049022,127.0,126.95,1.6489]
[1744772398265,9.00049022,126.98,126.94,9.00049022]
[1744772398548,6.352,127.02,126.94,9.00049022]
[1744772398747,9.00049022,126.99,126.94,9.00049022]
[1744772398929,7.87339579,127.01,126.94,36.57201418]
[1744772399128,9.00049022,127.0,126.95,9.00049022]
[1744772399353,9.00049022,127.01,126.96,9.00049022]
[1744772400154,14.22510074,127.02,126.96,9.00049022]
[1744772400361,14.22510074,127.02,126.94,27.57152396]
[1744772400362,9.37573736,127.03,126.97,9.00049022]
[1744772400562,16.87292758,127.03,126.98,9.00049022]
[1744772400769,22.69,126.99,126.98,9.00049022]
[1744772401083,0.03,127.04,127.0,0.14216157]
[1744772401239,0.03,127.04,127.03,9.00049022]
[1744772401563,0.03,127.04,127.03,19.82049022]
[1744772401735,9.03049022,127.04,126.99,9.00049022]
[1744772401930,0.03,127.04,126.99,9.00049022]
[1744772402131,9.00049022,127.03,126.98,44.50688602]
[1744772402562,9.00049022,127.03,126.98,24.81874616]
[1744772402738,9.03049022,127.04,126.99,9.00049022]
[1744772403254,9.03049022,127.04,127.0,7.87401574]
[1744772405159,9.00049022,127.03,127.0,7.87401574]
[1744772405664,9.00049022,127.02,127.0,7.87401574]
[1744772406138,9.00049022,127.01,126.99,7.87463579]
[1744772406333,9.00049022,127.0,126.97,18.69560574]
[1744772406540,1.5604,127.03,126.95,7.87711697]
[1744772406541,9.00049022,126.98,126.95,7.87711697]
[1744772406739,9.00049022,126.97,126.95,7.87711697]
[1744772408344,9.00049022,126.98,126.95,7.87711697]
[1744772408547,9.00049022,126.96,126.92,0.063]
[1744772408748,9.00049022,126.94,126.92,0.063]
[1744772408945,45.42340118,126.98,126.92,0.063]
[1744772409263,9.00049022,126.95,126.9,25.90332137]
[1744772409840,1.5459,126.98,126.92,16.8794691]
[1744772410154,9.00049022,126.99,126.94,9.00049022]
[1744772410351,9.00049022,127.01,126.96,9.00049022]
[1744772410657,9.00049022,127.0,126.95,9.00049022]
[1744772411061,9.00049022,126.99,126.94,10.82]
[1744772411239,9.00049022,126.99,126.94,19.82049022]
[1744772411439,9.00049022,126.99,126.95,7.87711697]
[1744772412459,9.00049022,126.98,126.95,7.87711697]
[1744772413358,14.07048955,126.98,126.95,7.87711697]
[1744772414563,14.07048955,126.99,126.95,7.87711697]
[1744772415558,14.07048955,126.98,126.95,7.87711697]
[1744772416262,14.07048955,126.99,126.95,7.87711697]
[1744772416766,14.07048955,127.0,126.95,41.64039895]
[1744772416964,0.03,127.04,126.99,14.07048955]
[1744772417149,14.10048955,127.04,126.99,14.07048955]
[1744772417542,14.07048955,127.02,126.97,14.07048955]
[1744772417763,14.07048955,127.01,126.97,14.07048955]
[1744772417938,14.07048955,127.01,126.98,7.87525594]
[1744772418745,14.07048955,127.02,126.98,7.87525594]
[1744772419255,14.07048955,127.01,126.98,7.87525594]
[1744772420672,14.07048955,127.0,126.97,7.87567297]
[1744772421564,14.07048955,126.98,126.91,6.5088]
[1744772421767,14.07048955,126.96,126.92,21.94946843]
[1744772421943,14.07048955,126.96,126.92,27.57642609]
[1744772422251,14.07048955,126.96,126.92,7.87897888]
[1744772426566,7.87555854,126.98,126.92,7.87897888]
[1744772426766,14.07048955,126.97,126.92,21.94946843]
[1744772427666,14.07048955,126.96,126.92,21.94946843]
[1744772433168,14.07048955,126.96,126.92,7.87897888]
[1744772434576,14.07048955,126.95,126.92,7.87897888]
[1744772434785,14.07048955,126.94,126.91,7.87959971]
[1744772435154,9.01114125,126.93,126.9,7.87989902]
[1744772436573,9.01114125,126.91,126.89,0.063]
[1744772436781,9.01114125,126.9,126.89,0.063]
[1744772437079,9.01114125,126.92,126.89,0.063]
[1744772437455,9.01114125,126.92,126.89,7.94384167]
[1744772439474,9.01114125,126.92,126.89,0.063]
[1744772441175,9.01114125,126.9,126.89,0.063]
[1744772442756,35.54101075,126.9,126.89,0.063]
[1744772444361,9.01114125,126.9,126.89,0.063]
[1744772444561,46.35976925,126.92,126.89,0.063]
[1744772445273,9.01114125,126.91,126.89,0.063]
[1744772445466,9.01114125,126.9,126.89,0.063]
[1744772447179,14.08730942,126.9,126.89,0.063]
[1744772449177,40.61717892,126.9,126.89,0.063]
[1744772449570,14.08730942,126.9,126.89,0.063]
[1744772449962,10.82,126.92,126.89,0.063]
[1744772450156,24.90730942,126.92,126.89,0.063]
[1744772450360,14.08730942,126.91,126.89,0.063]
[1744772461591,14.08730942,126.93,126.89,0.063]
[1744772461792,24.93730942,126.97,126.92,14.08730942]
[1744772461978,0.03,126.97,126.94,14.08730942]
[1744772462172,0.03,126.97,126.95,14.08730942]
[1744772462380,0.03,126.97,126.94,14.08730942]
[1744772462985,14.11730942,126.97,126.93,14.08730942]
[1744772463182,14.08730942,126.96,126.92,14.08730942]
[1744772463373,0.03,126.97,126.93,14.08730942]
[1744772463592,0.03,126.97,126.95,7.87711697]
[1744772466478,14.08730942,126.96,126.93,7.87835815]
[1744772466680,14.11730942,126.97,126.93,7.87835815]
[1744772467598,14.08730942,126.96,126.91,19.69854492]
[1744772467797,14.08730942,126.93,126.9,7.87992185]
[1744772467988,14.08730942,126.91,126.87,12.5407]
[1744772468183,14.08730942,126.9,126.87,1.7207]
[1744772469399,14.08730942,126.9,126.87,0.063]
[1744772469779,14.08730942,126.9,126.87,7.94501876]
[1744772469982,14.08730942,126.92,126.87,22.03232818]
[1744772470400,14.08730942,126.92,126.87,41.73753823]
[1744772470786,14.08730942,126.91,126.87,41.73753823]
[1744772473506,14.08730942,126.91,126.87,0.063]
[1744772474606,14.08730942,126.91,126.87,14.15030942]
[1744772475506,14.08730942,126.91,126.88,7.88146279]
[1744772475699,14.08730942,126.92,126.88,7.88146279]
[1744772475897,14.08730942,126.91,126.88,7.88146279]
[1744772476085,14.08730942,126.9,126.88,7.88146279]
[1744772476281,14.08730942,126.9,126.87,7.94479246]
[1744772477408,14.08730942,126.9,126.87,0.063]
[1744772477813,40.61717892,126.9,126.87,0.063]
[1744772478806,88.29334049,126.9,126.87,0.063]
[1744772479509,94.59195152,126.9,126.87,0.063]
[1744772479708,40.22947099,126.88,126.87,0.063]
[1744772479909,0.14216157,126.86,126.85,0.063]
[1744772480222,14.22947099,126.86,126.85,0.063]
[1744772480925,14.08730942,126.86,126.85,0.063]
[1744772481127,44.70146279,126.88,126.85,0.063]
[1744772481128,10.82,126.88,126.85,0.063]
[1744772481916,24.90730942,126.88,126.85,7.94632676]
[1744772482094,14.08730942,126.87,126.85,0.063]
[1744772483016,24.90730942,126.88,126.85,0.063]
[1744772483896,14.08730942,126.89,126.85,0.063]
[1744772484100,14.08730942,126.89,126.85,14.15030942]
[1744772484921,14.08730942,126.88,126.85,0.063]
[1744772489628,14.08730942,126.86,126.85,0.063]
[1744772491819,21.97001476,126.86,126.85,0.063]
[1744772492633,14.08730942,126.86,126.85,0.063]
[1744772493214,14.08730942,126.87,126.85,0.063]
[1744772493414,14.08730942,126.9,126.85,14.15030942]
[1744772493618,24.90730942,126.92,126.87,14.08730942]
[1744772494224,14.08730942,126.91,126.87,14.08730942]
[1744772496838,14.08730942,126.91,126.86,14.08730942]
[1744772499344,14.08730942,126.91,126.87,7.88208402]
[1744772501622,14.08730942,126.9,126.87,7.88208402]
[1744772503123,14.08730942,126.9,126.86,7.88270534]
[1744772503746,14.08730942,126.89,126.86,7.88270534]
[1744772503944,14.08730942,126.88,126.85,7.94604365]
[1744772504137,14.08730942,126.89,126.85,7.94604365]
[1744772506256,10.82,126.92,126.85,41.74166997]
[1744772506546,10.82,126.92,126.88,14.08730942]
[1744772506748,24.90730942,126.92,126.87,14.08730942]
[1744772507044,14.08730942,126.9,126.86,1.5019]
[1744772507227,32.73695828,126.91,126.86,23.47166389]
[1744772507430,24.90730942,126.92,126.87,14.08730942]
[1744772508546,24.90730942,126.92,126.88,7.88146279]
[1744772509725,14.08730942,126.91,126.88,7.88146279]
[1744772511951,14.08730942,126.91,126.87,7.88208402]
[1744772514732,14.08730942,126.89,126.87,7.88208402]
[1744772517958,14.08730942,126.89,126.86,9.38435794]
[1744772518345,14.08730942,126.88,126.86,9.38435794]
[1744772518857,14.08730942,126.88,126.86,7.88245794]
[1744772519045,14.08730942,126.88,126.85,7.94632676]
[1744772519552,14.08730942,126.89,126.85,7.94632676]
[1744772519753,24.90730942,126.92,126.87,14.08730942]
[1744772520760,14.08730942,126.9,126.85,41.74195308]
[1744772521461,14.08730942,126.91,126.85,41.74195308]
[1744772521863,24.90730942,126.92,126.86,14.08730942]
[1744772523160,9.01645135,126.91,126.85,36.67109501]
[1744772523861,16.896175,126.91,126.85,36.67109501]
[1744772525165,21.96803123,126.91,126.85,41.74295124]
[1744772526948,14.08830758,126.9,126.85,41.74295124]
[1744772528265,14.08830758,126.88,126.85,7.94632676]
[1744772528469,14.08830758,126.89,126.85,7.94632676]
[1744772529181,12.4364,126.96,126.88,15.62100758]
[1744772529351,12.4364,126.96,126.9,14.08830758]
[1744772529352,24.90830758,126.96,126.9,14.08830758]
[1744772529674,24.90830758,126.96,126.91,14.08830758]
[1744772530374,14.08830758,126.95,126.91,14.08830758]
[1744772530552,14.08830758,126.94,126.9,14.08830758]
[1744772531505,14.08830758,126.94,126.91,7.87959971]
[1744772531648,24.90830758,126.96,126.91,21.96790729]
[1744772531969,14.08830758,126.95,126.91,7.87959971]
[1744772532355,14.08830758,126.94,126.91,7.87959971]
[1744772533072,14.08830758,126.93,126.91,7.87959971]
[1744772533571,14.08830758,126.94,126.91,7.87959971]
[1744772533746,14.08830758,126.94,126.9,7.88022064]
[1744772534371,14.08830758,126.95,126.9,21.96852822]
[1744772537488,14.08830758,126.92,126.9,7.88022064]
[1744772537786,14.08830758,126.91,126.88,7.88146279]
[1744772538086,14.08830758,126.89,126.85,15.85439172]
[1744772538288,14.08830758,126.86,126.85,1.7113]
[1744772538486,14.08830758,126.86,126.85,0.063]
[1744772539270,32.88011801,126.86,126.85,0.063]
[1744772539475,43.70011801,126.86,126.85,0.063]
[1744772539891,51.44066178,126.86,126.85,0.063]
[1744772540071,51.58282335,126.86,126.85,0.063]
[1744772540688,51.44066178,126.86,126.85,0.063]
[1744772540887,43.55795644,126.86,126.85,0.063]
[1744772543290,51.44066178,126.86,126.85,0.063]
[1744772544477,43.55795644,126.86,126.85,0.063]
[1744772544887,51.44066178,126.86,126.85,0.063]
[1744772545499,51.58282335,126.86,126.85,0.063]
[1744772547080,38.64964886,126.85,126.84,0.063]
[1744772547377,52.73795644,126.85,126.84,0.063]
[1744772547883,32.73795644,126.85,126.84,0.063]
[1744772548080,43.55795644,126.86,126.84,0.063]
[1744772548382,14.08830758,126.85,126.84,0.063]
[1744772549299,10.82,126.86,126.84,0.063]
[1744772549501,14.08830758,126.87,126.84,0.063]
[1744772551400,14.08830758,126.88,126.84,0.063]
[1744772551602,14.08830758,126.92,126.87,14.08830758]
[1744772551915,0.03,126.97,126.9,14.08830758]
[1744772552204,14.08830758,126.95,126.9,14.08830758]
[1744772552687,14.08830758,126.95,126.91,7.87959971]
[1744772554103,14.08830758,126.92,126.9,7.88004254]
[1744772554286,14.08830758,126.91,126.89,7.88070607]
[1744772555490,14.08830758,126.92,126.89,7.88070607]
[1744772557415,14.08830758,126.92,126.88,14.26780828]
[1744772558618,14.08830758,126.92,126.85,13.91802676]
[1744772558619,14.08830758,126.89,126.85,13.91802676]
[1744772558920,14.08830758,126.92,126.88,14.08830758]
[1744772559099,24.90830758,126.93,126.88,14.08830758]
[1744772560730,24.90830758,126.93,126.89,7.88084167]
[1744772560909,14.08830758,126.91,126.85,51.7430169]
[1744772561210,14.08830758,126.91,126.86,14.08830758]
[1744772561541,14.08830758,126.9,126.85,65.83132448]
[1744772562135,14.08830758,126.9,126.86,7.88270534]
[1744772562536,14.08830758,126.89,126.86,7.88270534]
[1744772565135,14.08830758,126.9,126.86,7.88270534]
[1744772570931,82.93,126.97,126.89,14.08830758]
[1744772571239,0.03,126.97,126.93,14.08830758]
[1744772571642,14.08830758,126.96,126.92,6.1343]
[1744772572848,14.08830758,126.96,126.93,7.87835815]
[1744772573232,14.11830758,126.97,126.93,7.87835815]
[1744772573428,14.08830758,126.96,126.93,7.87835815]
[1744772577350,7.8764985,126.96,126.91,1.5615]
[1744772577534,14.08830758,126.94,126.9,7.88022064]
[1744772578348,14.08830758,126.94,126.9,21.96852822]
[1744772580557,14.08830758,126.95,126.9,21.96852822]
[1744772582854,14.08830758,126.93,126.9,7.88022064]
[1744772585154,14.08830758,126.95,126.9,21.96852822]
[1744772585537,14.08830758,126.94,126.9,7.88022064]
[1744772585836,14.08830758,126.93,126.9,7.88022064]
[1744772587440,14.08830758,126.92,126.89,7.88070472]
[1744772588862,14.08830758,126.93,126.89,7.88070472]
[1744772592667,0.03,126.97,126.92,14.08830758]
[1744772592842,0.03,126.97,126.94,14.08830758]
[1744772593043,0.03,126.97,126.95,14.08830758]
[1744772593242,0.03,126.97,126.94,9.00309687]
[1744772593449,0.03,126.97,126.94,7.87773751]
[1744772593664,9.03309687,126.97,126.94,7.87773751]
[1744772595243,14.10135563,126.97,126.94,7.87773751]
[1744772597875,14.10135563,126.97,126.93,14.07135563]
[1744772597876,14.07135563,126.95,126.92,7.87897888]
[1744772598654,0.03,126.97,126.93,14.07135563]
[1744772599859,0.03,126.97,126.96,14.07135563]
[1744772601674,0.03,126.97,126.95,14.07135563]
[1744772601883,0.03,126.97,126.96,7.87649653]
[1744772604670,0.03,126.97,126.96,21.94785216]
[1744772604981,0.03,126.97,126.96,7.87649653]
[1744772608774,0.03,126.97,126.95,7.87711697]
[1744772620803,0.03,126.97,126.95,16.88058102]
[1744772622002,1e-08,126.97,126.96,9.14562562]
[1744772622201,1e-08,126.97,126.95,16.88058102]
[1744772623085,1e-08,126.97,126.95,7.87711697]
[1744772623486,1e-08,126.97,126.96,9.00346405]
[1744772624292,1e-08,126.97,126.95,16.88058102]
[1744772626201,1e-08,126.97,126.95,7.87711697]
[1744772631808,1e-08,126.97,126.96,9.00346405]
[1744772632797,1e-08,126.97,126.96,16.87996058]
[1744772633914,1e-08,126.97,126.96,7.87649653]
[1744772636010,1e-08,126.97,126.96,16.87996058]
[1744772639615,1e-08,126.97,126.96,7.87649653]
[1744772640427,1e-08,126.97,126.95,7.87711697]
[1744772647423,1e-08,126.97,126.95,9.00346405]
[1744772648513,1e-08,126.97,126.94,36.57554534]
[1744772651814,1e-08,126.97,126.95,9.00346405]
[1744772655535,1e-08,126.97,126.96,7.87649653]
[1744772655837,1e-08,126.97,126.96,16.87996058]
[1744772657130,1e-08,126.97,126.96,7.87649653]